fUSD/lending_fUSD_20241106
["ID","MTS","AMOUNT","RATE_DAILY","PERIOD"]
[341438996,1730884232659,-526.08100365,0.00037398,2]
[341438998,1730884232669,-211.34,0.00037488,10]
[341439000,1730884232678,-153.11746793,0.00037488,10]
[341439002,1730884232689,-23.00253207,0.00037488,10]
[341439004,1730884232698,-1000.0,0.00037497,2]
[341439006,1730884232707,-6346.99746793,0.00037498,2]
[341439010,1730884238061,-12697.35785614,0.00037498,2]
[341439011,1730884238117,-13937.28705539,0.00037498,2]
[341439012,1730884238128,-8626.78479491,0.00037498,2]
[341439013,1730884238143,-63466.48249817,0.00037498,2]
[341439014,1730884238229,-452.28272746,0.00037498,2]
[341439015,1730884238238,-1157.0,0.00037606,2]
[341439016,1730884238247,-395.62072225,0.00037606,2]
[341439017,1730884238602,-170.41049894,0.00036929,2]
[341439145,1730884239973,-189.58950106,0.00036929,2]
[341439147,1730884239982,-1112.57563894,0.00037606,2]
[341439176,1730884240258,-3676.4771082,0.00037606,2]
[341439178,1730884240271,-274.97153061,0.00037606,2]
[341439180,1730884240281,-150.0,0.00037606,2]
[341439182,1730884240289,-1089.0,0.00037606,2]
[341439184,1730884240299,-930.82,0.00037609,2]
[341439186,1730884240308,-1327.87573,0.0003762,2]
[341439188,1730884240318,-162.13663934,0.00037622,2]
[341439213,1730884240333,-1657.76486066,0.00037622,2]
[341439216,1730884240570,-160.7364,0.00037708,2]
[341439218,1730884240580,-750.53,0.00037808,14]
[341439220,1730884240589,-500.0,0.00037808,14]
[341439222,1730884240598,-500.0,0.00037808,14]
[341439224,1730884240607,-416.83947242,0.00037808,14]
[341439226,1730884240616,-500.0,0.00037808,10]
[341439228,1730884240625,-500.0,0.00037808,14]
[341439230,1730884240636,-540.38310673,0.00037808,14]
[341439232,1730884240646,-500.0,0.00037808,14]
[341439234,1730884240655,-500.0,0.00037808,14]
[341439236,1730884240664,-500.0,0.00037808,14]
[341439237,1730884240673,-500.0,0.00037808,14]
[341439239,1730884240682,-500.0,0.00037808,14]
[341439241,1730884240691,-500.0,0.00037808,14]
[341439243,1730884240700,-500.0,0.00037808,14]
[341439245,1730884240709,-2234.72,0.00037808,14]
[341439247,1730884240719,-879.08,0.00037808,14]
[341439249,1730884240728,-500.0,0.00037808,14]
[341439251,1730884240737,-500.0,0.00037808,14]
[341439253,1730884240747,-500.0,0.00037808,14]
[341439255,1730884240756,-500.0,0.00037808,14]
[341439257,1730884240765,-500.0,0.00037808,14]
[341439259,1730884240775,-500.0,0.00037808,14]
[341439261,1730884240784,-500.0,0.00037808,14]
[341439263,1730884240793,-500.0,0.00037808,14]
[341439265,1730884240802,-500.0,0.00037808,14]
[341439267,1730884240811,-500.0,0.00037808,14]
[341439269,1730884240820,-500.0,0.00037808,14]
[341439271,1730884240830,-508.56653466,0.00037808,14]
[341439273,1730884240839,-500.0,0.00037808,14]
[341439275,1730884240849,-527.64841606,0.00037808,14]
[341439277,1730884240858,-21.36559175,0.00037808,14]
[341439406,1730884243007,-432.65440825,0.00037808,14]
[341439407,1730884243016,-507.42989973,0.00037808,14]
[341439408,1730884243025,-500.0,0.00037808,14]
[341439409,1730884243035,-500.0,0.00037808,14]
[341439410,1730884243044,-364.32245651,0.00037808,14]
[341439411,1730884243054,-500.0,0.00037808,14]
[341439412,1730884243063,-500.0,0.00037808,14]
[341439413,1730884243072,-500.0,0.00037808,14]
[341439414,1730884243081,-199.83228149,0.00037808,14]
[341439415,1730884243090,-502.07,0.00037808,14]
[341439416,1730884243099,-500.0,0.00037808,14]
[341439417,1730884243108,-248.72648792,0.00037808,14]
[341439418,1730884243117,-532.0163395,0.00037808,14]
[341439419,1730884243127,-512.51011037,0.00037808,14]
[341439420,1730884243136,-507.5869211,0.00037808,14]
[341439421,1730884243152,-500.0,0.00037808,14]
[341439422,1730884243161,-507.79538521,0.00037808,14]
[341439423,1730884243171,-500.0,0.00037808,14]
[341439424,1730884243180,-500.0,0.00037808,14]
[341439425,1730884243189,-541.42045304,0.00037808,14]
[341439426,1730884243198,-500.0,0.00037808,14]
[341439427,1730884243208,-515.95762241,0.00037808,14]
[341439428,1730884243217,-500.0,0.00037808,14]
[341439429,1730884243226,-500.0,0.00037808,14]
[341439430,1730884243237,-555.27305314,0.00037808,14]
[341439431,1730884243246,-241.88,0.00037808,14]
[341439432,1730884243255,-500.0,0.00037808,14]
[341439433,1730884243264,-500.0,0.00037808,14]
[341439434,1730884243273,-447.76999896,0.00037808,14]
[341439435,1730884243282,-500.0,0.00037808,14]
[341439436,1730884243291,-723.44,0.00037808,14]
[341439437,1730884243300,-500.0,0.00037808,14]
[341439438,1730884243309,-500.0,0.00037808,14]
[341439439,1730884243319,-152.1292005,0.00037808,14]
[341439440,1730884243336,-500.0,0.00037808,14]
[341439441,1730884243346,-500.0,0.00037808,14]
[341439442,1730884243355,-500.0,0.00037808,14]
[341439443,1730884243364,-500.0,0.00037808,14]
[341439444,1730884243374,-500.0,0.00037808,14]
[341439445,1730884243384,-500.0,0.00037808,14]
[341439446,1730884243401,-500.0,0.00037808,14]
[341439447,1730884243410,-529.25429483,0.00037808,14]
[341439448,1730884243419,-500.0,0.00037808,14]
[341439449,1730884243428,-500.0,0.00037808,14]
[341439450,1730884243437,-526.03064326,0.00037808,14]
[341439451,1730884243446,-507.57259688,0.00037808,14]
[341439452,1730884243455,-526.97397106,0.00037808,14]
[341439453,1730884243465,-500.0,0.00037808,14]
[341439454,1730884243474,-500.0,0.00037808,14]
[341439455,1730884243483,-500.0,0.00037808,14]
[341439456,1730884243492,-358.39087601,0.00037808,14]
[341439457,1730884243502,-500.0,0.00037808,14]
[341439458,1730884243511,-500.0,0.00037808,14]
[341439459,1730884243520,-417.16,0.00037808,14]
[341439461,1730884243529,-538.00236959,0.00037808,14]
[341439463,1730884243538,-500.0,0.00037808,14]
[341439465,1730884243547,-500.0,0.00037808,14]
[341439467,1730884243557,-587.42666295,0.00037808,14]
[341439469,1730884243566,-512.23721779,0.00037808,14]
[341439470,1730884243575,-500.0,0.00037808,14]
[341439473,1730884243584,-500.0,0.00037808,14]
[341439476,1730884243594,-500.0,0.00037808,14]
[341439477,1730884243603,-500.0,0.00037808,14]
[341439478,1730884243611,-500.0,0.00037808,7]
[341439479,1730884243620,-500.0,0.00037808,14]
[341439480,1730884243629,-500.0,0.00037808,14]
[341439481,1730884243642,-500.0,0.00037808,14]
[341439482,1730884243652,-500.0,0.00037808,14]
[341439483,1730884243662,-500.0,0.00037808,14]
[341439484,1730884243671,-500.0,0.00037808,14]
[341439485,1730884243680,-500.0,0.00037808,14]
[341439486,1730884243689,-500.0,0.00037808,14]
[341439487,1730884243697,-500.0,0.00037808,14]
[341439488,1730884243706,-500.0,0.00037808,14]
[341439489,1730884243715,-500.0,0.00037808,14]
[341439490,1730884243723,-500.0,0.00037808,14]
[341439491,1730884243733,-440.01374612,0.00037808,14]
[341439492,1730884243742,-509.85698526,0.00037808,14]
[341439493,1730884243751,-500.0,0.00037808,14]
[341439494,1730884243760,-500.0,0.00037808,14]
[341439495,1730884243769,-339.7890189,0.00037808,14]
[341439496,1730884243778,-500.0,0.00037808,14]
[341439497,1730884243789,-500.0,0.00037808,14]
[341439498,1730884243798,-500.0,0.00037808,14]
[341439499,1730884243807,-500.0,0.00037808,14]
[341439500,1730884243816,-764.16,0.00037808,14]
[341439501,1730884243825,-300.0,0.00037808,14]
[341439502,1730884243834,-230.98,0.00037808,14]
[341439503,1730884243843,-500.0,0.00037808,14]
[341439504,1730884243852,-500.0,0.00037808,14]
[341439505,1730884243861,-1390.86,0.00037808,14]
[341439506,1730884243871,-500.0,0.00037808,14]
[341439507,1730884243879,-176.45746106,0.00037808,14]
[341439508,1730884243890,-500.0,0.00037808,14]
[341439509,1730884243899,-500.0,0.00037808,14]
[341439510,1730884243908,-513.52805713,0.00037808,14]
[341439511,1730884243918,-500.0,0.00037808,14]
[341439512,1730884243926,-500.0,0.00037808,14]
[341439513,1730884243935,-500.0,0.00037808,14]
[341439514,1730884243946,-500.0,0.00037808,14]
[341439515,1730884243955,-500.0,0.00037808,14]
[341439516,1730884243965,-500.0,0.00037808,14]
[341439517,1730884243974,-470.14319612,0.00037808,14]
[341439518,1730884243983,-500.0,0.00037808,14]
[341439519,1730884243993,-500.0,0.00037808,14]
[341439520,1730884244003,-171.555,0.0003783,15]
[341439521,1730884244012,-210.96012488,0.00037895,2]
[341439522,1730884244023,-500.0,0.00037895,14]
[341439523,1730884244032,-500.0,0.00037895,14]
[341439524,1730884244041,-211.24,0.00037896,14]
[341439525,1730884244051,-500.0,0.00037896,14]
[341439526,1730884244061,-500.0,0.00037896,14]
[341439527,1730884244071,-500.0,0.00037896,14]
[341439528,1730884244082,-500.0,0.00037896,14]
[341439529,1730884244092,-500.0,0.00037896,14]
[341439530,1730884244102,-500.0,0.00037896,14]
[341439531,1730884244111,-500.0,0.00037896,14]
[341439532,1730884244121,-200.0,0.00037896,7]
[341439533,1730884244131,-500.0,0.00037896,14]
[341439534,1730884244143,-500.0,0.00037896,14]
[341439535,1730884244152,-500.0,0.00037896,14]
[341439536,1730884244162,-500.0,0.00037896,14]
[341439537,1730884244171,-517.61291165,0.00037896,14]
[341439538,1730884244180,-6555.99,0.00037896,14]
[341439539,1730884244189,-500.0,0.00037896,14]
[341439540,1730884244198,-750.53,0.00037897,14]
[341439541,1730884244207,-750.53,0.00037897,14]
[341439542,1730884244217,-500.0,0.00037897,14]
[341439543,1730884244226,-500.0,0.00037897,14]
[341439544,1730884244235,-500.0,0.00037897,14]
[341439545,1730884244244,-500.0,0.00037897,14]
[341439546,1730884244253,-357.74864823,0.00037897,14]
[341439547,1730884244267,-183.18125686,0.00037897,14]
[341439548,1730884244276,-2234.72,0.00037897,14]
[341439549,1730884244285,-2234.72,0.00037897,14]
[341439550,1730884244295,-879.08,0.00037897,14]
[341439551,1730884244304,-500.0,0.00037897,14]
[341439552,1730884244314,-500.0,0.00037897,14]
[341439553,1730884244324,-500.0,0.00037897,14]
[341439554,1730884244336,-500.0,0.00037897,14]
[341439555,1730884244346,-500.0,0.00037897,14]
[341439556,1730884244355,-502.07,0.00037897,14]
[341439557,1730884244364,-502.07,0.00037897,14]
[341439558,1730884244374,-500.0,0.00037897,14]
[341439559,1730884244384,-500.0,0.00037897,14]
[341439560,1730884244396,-500.0,0.00037897,14]
[341439561,1730884244405,-500.0,0.00037897,14]
[341439562,1730884244417,-500.0,0.00037897,14]
[341439563,1730884244427,-500.0,0.00037897,14]
[341439564,1730884244436,-500.0,0.00037897,14]
[341439565,1730884244446,-500.0,0.00037897,14]
[341439566,1730884244455,-500.0,0.00037897,14]
[341439567,1730884244465,-500.0,0.00037897,14]
[341439568,1730884244474,-723.44,0.00037897,14]
[341439569,1730884244484,-723.44,0.00037897,14]
[341439570,1730884244493,-508.07023726,0.00037897,14]
[341439571,1730884244502,-500.0,0.00037897,14]
[341439572,1730884244511,-580.42238321,0.00037897,14]
[341439573,1730884244520,-500.0,0.00037897,14]
[341439574,1730884244530,-500.0,0.00037897,14]
[341439575,1730884244539,-337.39355667,0.00037897,14]
[341439576,1730884244550,-162.60644333,0.00037897,14]
[341439577,1730884244560,-519.06327654,0.00037897,14]
[341439578,1730884244569,-500.0,0.00037897,14]
[341439579,1730884244578,-500.0,0.00037897,14]
[341439580,1730884244587,-500.0,0.00037897,14]
[341439581,1730884244597,-500.0,0.00037897,14]
[341439582,1730884244606,-500.0,0.00037897,14]
[341439583,1730884244616,-500.0,0.00037897,14]
[341439584,1730884244626,-500.0,0.00037897,14]
[341439585,1730884244636,-500.0,0.00037897,14]
[341439586,1730884244648,-500.0,0.00037897,14]
[341439587,1730884244657,-500.0,0.00037897,14]
[341439588,1730884244666,-500.0,0.00037897,14]
[341439589,1730884244675,-500.0,0.00037897,14]
[341439590,1730884244685,-500.0,0.00037897,14]
[341439591,1730884244695,-500.0,0.00037897,14]
[341439592,1730884244705,-500.0,0.00037897,14]
[341439593,1730884244714,-500.0,0.00037897,14]
[341439594,1730884244723,-500.0,0.00037897,14]
[341439595,1730884244732,-500.0,0.00037897,14]
[341439596,1730884244741,-500.0,0.00037897,14]
[341439597,1730884244750,-500.0,0.00037897,14]
[341439598,1730884244759,-184.90406862,0.00037897,14]
[341439599,1730884244767,-500.0,0.00037897,14]
[341439600,1730884244776,-500.0,0.00037897,14]
[341439601,1730884244785,-500.0,0.00037897,14]
[341439602,1730884244794,-500.0,0.00037897,14]
[341439603,1730884244803,-500.0,0.00037897,14]
[341439604,1730884244812,-500.0,0.00037897,14]
[341439605,1730884244821,-500.0,0.00037897,14]
[341439606,1730884244830,-500.0,0.00037897,14]
[341439607,1730884244839,-500.0,0.00037897,14]
[341439608,1730884244848,-500.58790638,0.00037897,14]
[341439609,1730884244857,-500.0,0.00037897,14]
[341439610,1730884244866,-500.0,0.00037897,14]
[341439611,1730884244875,-500.0,0.00037897,14]
[341439612,1730884244885,-500.0,0.00037897,14]
[341439613,1730884244897,-500.0,0.00037897,14]
[341439614,1730884244907,-3.40210511,0.00037897,14]
[341439615,1730884244919,-496.59789489,0.00037897,14]
[341439616,1730884244928,-764.16,0.00037897,14]
[341439617,1730884244937,-764.16,0.00037897,14]
[341439618,1730884244947,-500.0,0.00037897,14]
[341439619,1730884244956,-500.0,0.00037897,14]
[341439620,1730884244965,-500.0,0.00037897,14]
[341439621,1730884244975,-500.0,0.00037897,14]
[341439622,1730884244984,-1390.86,0.00037897,14]
[341439623,1730884244994,-1390.86,0.00037897,14]
[341439624,1730884245003,-500.0,0.00037897,14]
[341439625,1730884245012,-122.86430865,0.00037897,14]
[341439626,1730884245024,-377.13569135,0.00037897,14]
[341439627,1730884245033,-500.0,0.00037897,14]
[341439628,1730884245042,-532.15543195,0.00037897,14]
[341439629,1730884245052,-500.0,0.00037897,14]
[341439630,1730884245062,-500.0,0.00037897,14]
[341439631,1730884245071,-516.18443185,0.00037897,14]
[341439632,1730884245081,-500.0,0.00037897,14]
[341439633,1730884245089,-500.0,0.00037897,14]
[341439634,1730884245098,-500.0,0.00037897,14]
[341439635,1730884245107,-500.0,0.00037897,14]
[341439636,1730884245116,-317.7168708,0.00037897,2]
[341439637,1730884245125,-750.53,0.00037899,14]
[341439638,1730884245134,-500.0,0.00037899,14]
[341439639,1730884245147,-500.0,0.00037899,14]
[341439640,1730884245164,-2234.72,0.00037899,14]
[341439641,1730884245174,-879.08,0.00037899,14]
[341439642,1730884245183,-500.0,0.00037899,14]
[341439643,1730884245193,-500.0,0.00037899,14]
[341439644,1730884245202,-500.0,0.00037899,14]
[341439645,1730884245211,-502.07,0.00037899,14]
[341439646,1730884245221,-500.0,0.00037899,14]
[341439647,1730884245230,-500.0,0.00037899,14]
[341439648,1730884245239,-500.0,0.00037899,14]
[341439649,1730884245249,-639.39625183,0.00037899,14]
[341439650,1730884245258,-723.44,0.00037899,14]
[341439651,1730884245267,-500.0,0.00037899,14]
[341439652,1730884245277,-500.0,0.00037899,14]
[341439653,1730884245287,-500.0,0.00037899,14]
[341439654,1730884245297,-500.0,0.00037899,14]
[341439655,1730884245307,-500.0,0.00037899,14]
[341439656,1730884245318,-500.0,0.00037899,14]
[341439657,1730884245329,-500.0,0.00037899,14]
[341439658,1730884245339,-500.0,0.00037899,14]
[341439659,1730884245349,-500.0,0.00037899,14]
[341439660,1730884245359,-500.0,0.00037899,14]
[341439661,1730884245371,-500.0,0.00037899,14]
[341439662,1730884245381,-500.0,0.00037899,14]
[341439663,1730884245391,-500.0,0.00037899,14]
[341439664,1730884245403,-500.0,0.00037899,14]
[341439665,1730884245414,-500.0,0.00037899,14]
[341439666,1730884245424,-500.0,0.00037899,14]
[341439667,1730884245434,-500.0,0.00037899,14]
[341439668,1730884245444,-500.0,0.00037899,14]
[341439669,1730884245454,-764.16,0.00037899,14]
[341439670,1730884245464,-500.0,0.00037899,14]
[341439671,1730884245474,-500.0,0.00037899,14]
[341439672,1730884245483,-1390.86,0.00037899,14]
[341439673,1730884245493,-500.0,0.00037899,14]
[341439674,1730884245502,-396.53482788,0.00037899,14]
[341439675,1730884245519,-103.46517212,0.00037899,14]
[341439676,1730884245528,-500.0,0.00037899,14]
[341439677,1730884245538,-500.0,0.00037899,14]
[341439678,1730884245548,-207.03016122,0.000379,2]
[341439679,1730884245558,-2287.64969434,0.000379,3]
[341439680,1730884245569,-150.0,0.00037956,2]
[341439681,1730884245579,-282.457,0.00037956,2]
[341439682,1730884245589,-247.199,0.00037956,2]
[341439683,1730884245599,-152.964,0.00037956,2]
[341439684,1730884245608,-150.798,0.00037956,2]
[341439685,1730884245618,-1252.0,0.00037956,2]
[341439686,1730884245628,-452.0,0.00037956,2]
[341439687,1730884245638,-1988.0,0.00037956,2]
[341439688,1730884245654,-558.0,0.00037956,2]
[341439689,1730884245664,-1547.847,0.00037956,2]
[341439690,1730884245674,-813.0,0.00037956,2]
[341439691,1730884245684,-199.37681175,0.00037956,2]
[341439692,1730884245702,-2707.62318825,0.00037956,2]
[341439693,1730884245712,-1257.0,0.00037956,2]
[341439694,1730884245722,-920.0,0.00037956,2]
[341439695,1730884245732,-879.08,0.00037966,14]
[341439696,1730884245742,-500.0,0.00037966,14]
[341439697,1730884245752,-500.0,0.00037973,5]
[341439698,1730884245762,-500.0,0.00037973,2]
[341439699,1730884245773,-750.53,0.00037996,14]
[341439700,1730884245783,-750.53,0.00037996,14]
[341439701,1730884245793,-750.53,0.00037996,14]
[341439702,1730884245802,-750.53,0.00037996,14]
[341439703,1730884245812,-750.53,0.00037996,14]
[341439704,1730884245821,-750.53,0.00037996,14]
[341439705,1730884245831,-750.53,0.00037996,14]
[341439706,1730884245841,-500.0,0.00037996,14]
[341439707,1730884245851,-500.0,0.00037996,14]
[341439708,1730884245860,-373.04,0.00037996,14]
[341439709,1730884245869,-502.07,0.00037996,14]
[341439710,1730884245879,-502.07,0.00037996,14]
[341439711,1730884245889,-502.07,0.00037996,14]
[341439712,1730884245900,-502.07,0.00037996,14]
[341439713,1730884245910,-502.07,0.00037996,14]
[341439714,1730884245919,-502.07,0.00037996,14]
[341439715,1730884245929,-502.07,0.00037996,14]
[341439716,1730884245938,-500.0,0.00037996,14]
[341439717,1730884245947,-500.0,0.00037996,14]
[341439718,1730884245956,-500.0,0.00037996,14]
[341439719,1730884245966,-500.0,0.00037996,14]
[341439721,1730884245975,-331.40698431,0.00037996,14]
[341439723,1730884245985,-500.0,0.00037996,14]
[341439724,1730884245995,-500.0,0.00037996,14]
[341439725,1730884246004,-500.0,0.00037996,14]
[341439726,1730884246013,-500.0,0.00037996,14]
[341439727,1730884246023,-500.0,0.00037996,14]
[341439728,1730884246033,-500.0,0.00037996,14]
[341439729,1730884246042,-500.0,0.00037996,14]
[341439730,1730884246051,-500.0,0.00037996,14]
[341439731,1730884246061,-500.0,0.00037996,14]
[341439732,1730884246070,-500.0,0.00037996,14]
[341439733,1730884246079,-500.0,0.00037996,14]
[341439734,1730884246089,-500.0,0.00037996,14]
[341439735,1730884246098,-488.64982734,0.00037996,14]
[341439736,1730884246110,-11.35017266,0.00037996,14]
[341439737,1730884246120,-438.80543468,0.00037996,14]
[341439738,1730884246129,-253.53487361,0.00037996,14]
[341439739,1730884246240,-880.63,0.00037798,10]
[341439740,1730884246249,-9.34210294,0.00037895,14]
[341439741,1730884246261,-423.64989706,0.00037895,14]
[341439742,1730884246272,-67.008,0.00037895,14]
[341439743,1730884246282,-500.0,0.00037895,14]
[341439744,1730884246291,-246.46512639,0.00037996,14]
[341439745,1730884246300,-500.0,0.00037996,14]
[341439746,1730884246309,-500.0,0.00037996,14]
[341439747,1730884246319,-500.0,0.00037996,14]
[341439748,1730884246331,-500.0,0.00037996,14]
[341439749,1730884246340,-470.56486232,0.00037996,14]
[341439750,1730884246623,-29.43513768,0.00037996,14]
[341439751,1730884246633,-500.0,0.00037996,14]
[341439752,1730884246643,-500.0,0.00037996,14]
[341439753,1730884246652,-500.0,0.00037996,14]
[341439754,1730884246661,-500.0,0.00037996,14]
[341439755,1730884246671,-567.91,0.00037996,14]
[341439756,1730884246680,-500.0,0.00037996,14]
[341439757,1730884246689,-500.0,0.00037996,14]
[341439758,1730884246699,-500.0,0.00037996,14]
[341439759,1730884246708,-500.0,0.00037996,14]
[341439760,1730884246717,-500.0,0.00037996,14]
[341439761,1730884246726,-500.0,0.00037996,14]
[341439762,1730884246735,-500.0,0.00037996,14]
[341439764,1730884246744,-764.16,0.00037996,14]
[341439766,1730884246753,-505.31630396,0.00037996,14]
[341439768,1730884246765,-258.84369604,0.00037996,14]
[341439770,1730884246774,-764.16,0.00037996,14]
[341439772,1730884246783,-190.95746243,0.00037996,14]
[341439887,1730885102862,156.9,0.00015342,2]
[341439888,1730885108731,9437.9226657,0.00016,2]
[341439889,1730885108758,2000.0,0.00016,2]
[341439890,1730885108800,2985041.53714482,0.00016,2]
[341439892,1730885200235,-2324.21123606,0.000199,3]
[341439893,1730885241141,-756.92949988,0.00022,2]
[341439906,1730885348131,-26379.62726,0.0002,2]
[341439907,1730885351362,-2941.146698,0.0002,2]
[341439908,1730885356109,-7447.38098415,0.0002,2]
[341439909,1730885356128,-250.0,0.00021,2]
[341439910,1730885356148,-12773.37991482,0.00022,2]
[341439911,1730885356168,-300.0,0.00023,2]
[341439912,1730885356187,-4312.38401841,0.00023999,2]
[341439913,1730885356207,-350.0,0.00025,2]
[341439914,1730885356226,-400.0,0.00027,2]
[341439915,1730885356247,-869.71025,0.0003,2]
[341439916,1730885356266,-171.25984588,0.00032877,2]
[341439917,1730885356286,-200.0,0.000342,2]
[341439918,1730885356305,-511.49260512,0.000342,2]
[341439919,1730885356325,-869.71025,0.00034235,2]
[341439952,1730885432148,-1187.42,0.00034739,2]
[341439953,1730885432159,-34.45501474,0.0003492,2]
[341439954,1730885432209,-978.62498526,0.0003492,2]
[341439955,1730885432218,-971.37502074,0.0003492,2]
[341439956,1730885432229,-265.83623177,0.0003492,2]
[341439957,1730885432271,-101.16874749,0.0003492,2]
[341439958,1730885432280,-157.34,0.0003499,3]
[341439959,1730885432289,-499.19237297,0.00035,2]
[341439960,1730885432334,-20947.32995252,0.00035,2]
[341439961,1730885432345,-2299.99999766,0.00035,2]
[341439962,1730885432356,-3987.01681119,0.00035,2]
[341439963,1730885432402,-3303.90342814,0.00035,2]
[341439975,1730885438233,-415.50265959,0.00035,2]
[341439976,1730885438580,-114.92159244,0.00035,2]
[341439977,1730885438592,-999.92943982,0.00035,2]
[341440024,1730885440334,-377.79490619,0.00035,2]
[341440025,1730885440346,-3164.75,0.00035,2]
[341440026,1730885440357,-18043.58503451,0.00035,2]
[341440027,1730885440398,-306.40941675,0.00035,2]
[341440033,1730885443215,-406.466557,0.00035,2]
[341440034,1730885443318,-16830.11753812,0.00035,2]
[341440035,1730885443489,-738.97,0.00035,2]
[341440038,1730885446150,-1479.12735,0.00035,2]
[341440039,1730885446209,-12612.76565855,0.00035,2]
[341440040,1730885446219,-364.99124972,0.00035,2]
[341440041,1730885446229,-1268.89177162,0.00035368,2]
[341440222,1730885511225,962.42,0.00034254,2]
[341440232,1730886137779,156.22,0.00015342,2]
[341440233,1730886355162,-156.01,0.00016712,2]
[341440234,1730886355181,-178.643,0.0003,2]
[341440235,1730886355201,-575.20663444,0.000307,2]
[341440236,1730886399556,150.0,0.000165,3]
[341440237,1730886403091,-176.661,0.0003,2]
[341440238,1730886403111,-98.04714934,0.000307,2]
[341440240,1730886545131,-366.58971274,0.000306,2]
[341440241,1730886545152,-298.74621622,0.000307,2]
[341440242,1730886545173,-872.51131867,0.000307,30]
[341440243,1730886545199,-944.7,0.00033325,2]
[341440244,1730886545220,-1370.51,0.00033973,2]
[341440245,1730886545240,-488.38,0.00034149,2]
[341440246,1730886545261,-250.0,0.00034149,2]
[341440247,1730886545280,-985.29,0.00034205,2]
[341440248,1730886545301,-250.0,0.00034226,2]
[341440249,1730886545322,-176.49,0.00034254,120]
[341440250,1730886545342,-301.0,0.00034284,120]
[341440251,1730886545362,-23900.0,0.0003429,2]
[341440252,1730886545382,-250.37,0.00034324,2]
[341440253,1730886545402,-250.0,0.00034373,120]
[341440254,1730886545421,-642.08,0.0003444,2]
[341440255,1730886545442,-708.99,0.00034481,2]
[341440256,1730886545462,-1370.51,0.00034518,2]
[341440257,1730886545497,2818.51,0.00034035,2]
[341440258,1730886584433,897.46,0.00033387,2]
[341440265,1730886632378,-150.0,0.00034548,10]
[341440266,1730886632387,-324.58,0.00034551,2]
[341440267,1730886632396,-155.44,0.00034615,2]
[341440268,1730886632405,-200.0,0.00034797,7]
[341440269,1730886632414,-1106.56311,0.0003501,2]
[341440270,1730886632424,-200.0,0.00035012,2]
[341440271,1730886632432,-1370.51,0.00035064,2]
[341440272,1730886632441,-147.85156144,0.00035294,2]
[341440273,1730886632454,-852.14843856,0.00035294,2]
[341440274,1730886632464,-2567.72,0.00035309,2]
[341440275,1730886632473,-1370.51,0.0003561,2]
[341440276,1730886632482,-897.46,0.00035651,2]
[341440277,1730886632492,-177.12,0.00035879,120]
[341440278,1730886632502,-317.71687078,0.000359,2]
[341440279,1730886632511,-467.09586608,0.000359,2]
[341440280,1730886632521,-230.2515779,0.000359,10]
[341440281,1730886632529,-500.0,0.00035973,2]
[341440282,1730886632538,-500.0,0.00035973,5]
[341440283,1730886632547,-480.22,0.0003599,10]
[341440284,1730886632557,-500.0,0.00035999,15]